bitfinex-derivatives/quotes_SOLF0:USTF0_20250307
["timestamp","ask_amount","ask_price","bid_price","bid_amount"]
[1741386581846,32.42,141.05,141.0,7.6296]
[1741386582046,32.42,141.05,141.01,7.0933]
[1741386582945,7.0912,141.06,141.01,7.0933]
[1741386582946,0.0465309,141.04,141.02,0.05080303]
[1741386584049,0.0465309,141.04,141.02,7.14380303]
[1741386586648,32.4,141.05,141.02,0.05080303]
[1741386586853,39.4903,141.08,141.02,0.05080303]
[1741386587755,0.04625196,141.06,141.04,7.0921]
[1741386588755,193.0,141.14,141.05,17.10395759]
[1741386588944,32.4,141.13,141.05,17.10395759]
[1741386589147,32.4,141.13,141.07,17.10395759]
[1741386589352,32.4,141.13,141.08,7.0898]
[1741386589747,32.4,141.13,141.07,17.10395759]
[1741386589949,32.45186044,141.12,141.09,7.13708519]
[1741386591251,32.45186044,141.12,141.09,0.04758519]
[1741386591549,32.4,141.19,141.11,17.10395759]
[1741386591857,193.0,141.21,141.11,17.10395759]
[1741386592246,32.4,141.2,141.13,17.10395759]
[1741386592654,0.05308089,141.18,141.15,0.04982915]
[1741386593053,0.05308089,141.18,141.16,7.0861]
[1741386593251,0.05308089,141.18,141.15,17.15378674]
[1741386593457,0.05308089,141.18,141.16,3.9417]
[1741386593759,32.38,141.22,141.17,17.10395759]
[1741386594359,32.38,141.22,141.18,7.0849]
[1741386594559,32.38,141.25,141.18,7.0849]
[1741386594854,0.05191185,141.23,141.2,0.04806624]
[1741386595454,0.05191185,141.23,141.2,7.13206624]
[1741386596555,0.05191185,141.23,141.2,0.04806624]
[1741386598857,0.05191185,141.23,141.2,3.83776624]
[1741386599859,0.05191185,141.23,141.2,10.92166624]
[1741386600063,0.05191185,141.23,141.2,3.83776624]
[1741386600763,7.0836,141.21,141.2,0.04806624]
[1741386601361,39.4236,141.21,141.2,0.04806624]
[1741386602567,32.34,141.21,141.2,0.04806624]
[1741386602754,200.0835,141.22,141.2,0.04806624]
[1741386602959,193.0,141.22,141.2,0.04806624]
[1741386603266,0.05191185,141.23,141.21,7.0833]
[1741386603659,0.05191185,141.23,141.2,0.04806624]
[1741386604062,193.0,141.32,141.2,59.69229599]
[1741386604364,200.0782,141.32,141.27,7.0805]
[1741386604564,225.34,141.31,141.21,36.035]
[1741386604764,32.34,141.3,141.22,27.30422975]
[1741386604964,7.0804,141.28,141.23,7.0822]
[1741386605159,0.04831825,141.27,141.25,0.04816337]
[1741386605665,7.12891825,141.27,141.25,0.04816337]
[1741386605866,0.04831825,141.27,141.25,0.04816337]
[1741386606066,7.0811,141.26,141.25,0.04816337]
[1741386606560,39.4011,141.26,141.25,0.04816337]
[1741386606866,32.32,141.26,141.16,27.30422975]
[1741386607165,225.32,141.26,141.16,27.30422975]
[1741386607566,7.0845,141.2,141.15,7.7737]
[1741386608067,0.04873065,141.19,141.16,0.04896531]
[1741386609468,0.04873065,141.19,141.16,3.95196531]
[1741386610794,7.0856,141.17,141.16,3.95196531]
[1741386611290,7.0856,141.17,141.16,0.04896531]
[1741386614772,0.04873065,141.19,141.16,0.04896531]
[1741386616075,7.13333065,141.19,141.16,0.04896531]
[1741386617303,0.04873065,141.19,141.16,0.04896531]
[1741386617899,0.04873065,141.19,141.18,7.0851]
[1741386618592,193.0,141.21,141.16,0.04896531]
[1741386618805,32.3,141.26,141.18,27.30422975]
[1741386618997,32.3,141.26,141.19,7.5744]
[1741386619596,193.0,141.28,141.21,27.30422975]
[1741386619797,0.05280505,141.24,141.21,27.35643901]
[1741386619995,193.0,141.28,141.21,27.35643901]
[1741386621106,0.04829709,141.26,141.21,27.35643901]
[1741386621310,0.04829709,141.26,141.25,7.0815]
[1741386621805,193.0,141.33,141.27,27.30422975]
[1741386622005,32.28,141.36,141.28,3.9309]
[1741386622496,302.28968914,141.37,141.28,3.9309]
[1741386622701,0.05024498,141.34,141.31,7.12789718]
[1741386623505,0.05024498,141.34,141.32,7.078]
[1741386623707,0.05024498,141.34,141.31,0.04939718]
[1741386624609,0.05024498,141.34,141.31,7.12749718]
[1741386626605,0.05024498,141.34,141.31,0.04939718]
[1741386626904,32.26,141.33,141.31,0.04939718]
[1741386627601,7.0781,141.32,141.31,0.04939718]
[1741386627900,32.26,141.33,141.23,31.11432975]
[1741386628200,7.0805,141.28,141.23,38.19662975]
[1741386628498,32.26,141.29,141.23,38.19662975]
[1741386629196,7.12739754,141.27,141.25,0.05038714]
[1741386629442,0.04649754,141.27,141.25,0.05038714]
[1741386629977,7.0811,141.26,141.25,0.05038714]
[1741386631579,7.12729754,141.27,141.25,0.05038714]
[1741386636678,0.04649754,141.27,141.25,0.05038714]
[1741386637077,32.24,141.32,141.25,27.35461689]
[1741386637574,0.2177,141.36,141.28,27.30422975]
[1741386637777,7.0763,141.36,141.31,7.0783]
[1741386637984,7.0763,141.36,141.28,30.97172975]
[1741386638277,0.0469296,141.33,141.32,7.0777]
[1741386638482,7.076,141.37,141.31,0.04829734]
[1741386638678,0.04476836,141.34,141.31,0.04829734]
[1741386638875,0.04476836,141.34,141.33,7.0774]
[1741386642380,193.0,141.38,141.32,4.025]
[1741386642580,193.0,141.38,141.34,7.0767]
[1741386642783,193.0,141.38,141.32,4.025]
[1741386643081,7.0756,141.37,141.33,7.0773]
[1741386643285,193.0,141.38,141.32,4.025]
[1741386643484,0.02369143,141.36,141.34,0.05453407]
[1741386645282,209.71253937,141.44,141.34,0.05453407]
[1741386645481,209.71253937,141.44,141.39,7.0743]
[1741386645679,193.0,141.44,141.36,59.50422975]
[1741386645986,193.0,141.44,141.37,3.9483]
[1741386646492,193.0,141.44,141.39,0.04909099]
[1741386648082,1.0303,141.5,141.39,27.35332074]
[1741386648281,7.0698,141.49,141.42,27.30422975]
[1741386648478,7.0698,141.49,141.43,0.04673649]
[1741386648678,193.2648,141.51,141.43,0.04673649]
[1741386648880,193.0,141.51,141.45,27.30422975]
[1741386649390,200.0687,141.51,141.47,0.05430546]
[1741386649785,193.0,141.51,141.47,0.05430546]
[1741386650085,200.0687,141.51,141.47,0.05430546]
[1741386650886,193.0,141.51,141.47,0.05430546]
[1741386651188,193.0,141.51,141.41,3.8082]
[1741386651382,193.0,141.5,141.41,3.8082]
[1741386651584,32.18,141.49,141.39,271.80422975]
[1741386651783,193.0,141.48,141.39,239.62422975]
[1741386652089,193.0,141.48,141.36,27.30422975]
[1741386652288,193.0,141.48,141.38,7.075]
[1741386652584,0.05255294,141.43,141.41,0.05359315]
[1741386652788,32.16,141.43,141.41,0.05359315]
[1741386652979,32.20853928,141.43,141.41,0.05359315]
[1741386653183,7.0731,141.42,141.41,0.05359315]
[1741386653585,7.0755,141.38,141.35,3.7932]
[1741386654298,7.0755,141.38,141.34,7.6658]
[1741386654686,7.0755,141.38,141.34,14.7427]
[1741386654891,0.0496051,141.37,141.35,0.05385406]
[1741386655593,0.0496051,141.37,141.36,7.0761]
[1741386655895,0.0496051,141.37,141.35,0.05385406]
[1741386656495,0.0496051,141.37,141.35,7.13015406]
[1741386656893,0.0496051,141.37,141.35,0.05385406]
[1741386657296,0.0496051,141.37,141.35,7.13025406]
[1741386657492,32.16,141.47,141.36,59.46422975]
[1741386657688,193.0,141.5,141.4,27.30422975]
[1741386657885,32.601,141.53,141.43,27.30422975]
[1741386658398,7.0684,141.52,141.45,7.0712]
[1741386658696,0.05229998,141.49,141.47,0.05044065]
[1741386659593,0.05229998,141.49,141.48,7.0701]
[1741386660292,32.14,141.54,141.49,7.0691]
[1741386661400,32.14,141.54,141.5,0.05396267]
[1741386662794,32.14,141.54,141.43,27.30422975]
[1741386662998,27.30422975,141.52,141.41,3.8799]
[1741386663296,27.30422975,141.49,141.39,7.0744]
[1741386663502,225.4213,141.48,141.36,3.9933]
[1741386663691,193.0,141.47,141.36,3.9933]
[1741386663898,220.30422975,141.46,141.34,216.0599]
[1741386664100,27.35438746,141.43,141.3,77.33785609]
[1741386664297,27.30422975,141.4,141.3,77.33785609]
[1741386664493,193.0,141.39,141.3,77.33785609]
[1741386664695,27.30422975,141.37,141.31,38.17232865]
[1741386664891,193.0,141.36,141.25,212.18]
[1741386665100,193.0,141.35,141.21,3.4917]
[1741386665297,0.04897384,141.32,141.29,0.05453594]
[1741386665492,193.04897384,141.32,141.29,0.05453594]
[1741386665696,196.58897384,141.32,141.29,0.05453594]
[1741386665899,196.58897384,141.32,141.29,3.594e-05]
[1741386666205,7.0791,141.3,141.29,3.594e-05]
[1741386666399,39.1991,141.3,141.29,3.594e-05]
[1741386666596,42.7391,141.3,141.29,3.594e-05]
[1741386667801,0.04897384,141.32,141.29,3.594e-05]
[1741386668006,32.12,141.31,141.29,3.594e-05]
[1741386668801,0.04897384,141.32,141.29,3.594e-05]
[1741386668802,32.12,141.3,141.29,3.594e-05]
[1741386670400,0.04897384,141.32,141.29,3.594e-05]
[1741386670603,32.18897384,141.32,141.29,3.594e-05]
[1741386671309,32.18897384,141.32,141.31,7.0786]
[1741386671310,0.04897384,141.32,141.31,7.0786]
[1741386672206,193.0,141.41,141.36,7.0757]
[1741386672399,32.12,141.45,141.35,32.12]
[1741386672605,32.12,141.45,141.37,44.3632083]
[1741386672808,32.12,141.45,141.41,7.0735]
[1741386673003,32.12,141.45,141.37,44.3632083]
[1741386673215,32.12,141.45,141.4,44.3632083]
[1741386673515,32.12,141.48,141.4,76.53388578]
[1741386673706,302.12968914,141.51,141.43,44.3632083]
[1741386673907,302.12968914,141.51,141.47,7.0705]
[1741386674216,77.00968914,141.51,141.46,44.3632083]
[1741386675011,0.05089673,141.5,141.47,0.04577976]
[1741386682248,0.05089673,141.5,141.48,7.07]
[1741386682656,0.05089673,141.5,141.47,0.04577976]
[1741386682851,0.05089673,141.5,141.47,7.11617976]
[1741386683755,0.05089673,141.5,141.48,7.07]
[1741386684553,32.08,141.6,141.49,76.4432083]
[1741386684751,32.06,141.6,141.52,44.3632083]
[1741386685442,32.06,141.6,141.52,51.4310083]
[1741386685648,32.06,141.6,141.55,0.04573533]
[1741386686032,7.0654,141.58,141.55,0.04573533]
[1741386687923,7.0661,141.56,141.55,0.04573533]
[1741386688325,39.1261,141.56,141.55,0.04573533]
[1741386689724,7.0682,141.52,141.48,212.14]
[1741386689930,32.06,141.56,141.48,212.14]
[1741386690121,32.06,141.56,141.5,7.0687]
[1741386690328,32.06,141.56,141.48,212.14]
[1741386690531,7.0677,141.53,141.48,212.14]
[1741386690734,7.0677,141.53,141.49,7.0694]
[1741386691032,0.04498003,141.52,141.49,7.12053595]
[1741386691533,0.04498003,141.52,141.49,0.05113595]
[1741386691727,0.04498003,141.52,141.49,44.41434425]
[1741386692234,32.04,141.57,141.49,44.41434425]
[1741386692635,39.106,141.57,141.52,44.3632083]
[1741386692835,7.066,141.57,141.52,44.3632083]
[1741386693335,7.066,141.57,141.53,0.04466705]
[1741386693629,7.0653,141.58,141.53,7.11186705]
[1741386693834,193.0,141.59,141.53,7.11186705]
[1741386693835,193.0,141.65,141.55,44.3632083]
[1741386694030,7.0629,141.63,141.58,7.0648]
[1741386694229,225.04,141.65,141.56,6.5555]
[1741386694428,225.04,141.65,141.59,0.04969636]
[1741386694634,7.0634,141.62,141.59,0.04969636]
[1741386695228,225.04,141.65,141.59,0.04969636]
[1741386695829,32.02,141.64,141.59,0.04969636]
[1741386696033,7.0634,141.62,141.59,0.04969636]
[1741386696934,32.02,141.64,141.59,0.04969636]
[1741386698137,7.0637,141.61,141.59,0.04969636]
[1741386698534,32.02,141.64,141.59,0.04969636]
[1741386699136,7.0634,141.62,141.59,0.04969636]
[1741386699445,32.02,141.64,141.59,0.04969636]
[1741386699838,7.0641,141.6,141.59,0.04969636]
[1741386700559,39.0641,141.6,141.59,0.04969636]
[1741386701944,32.0,141.63,141.59,0.04969636]
[1741386702338,225.0,141.65,141.59,0.04969636]
[1741386702538,225.0,141.65,141.59,7.11419636]
[1741386702741,7.0626,141.63,141.59,7.11419636]
[1741386702943,225.0,141.65,141.59,7.11419636]
[1741386703247,7.0626,141.63,141.59,7.11419636]
[1741386704237,7.0622,141.64,141.6,7.0641]
[1741386704549,193.0,141.65,141.59,27.22210831]
[1741386704948,200.0619,141.65,141.6,7.0637]
[1741386705448,193.0,141.65,141.59,0.04969636]
[1741386705838,200.0619,141.65,141.59,34.28640831]
[1741386706042,193.0,141.65,141.59,34.28640831]
[1741386706248,193.0,141.65,141.59,0.04969636]
[1741386707948,7.0622,141.64,141.6,7.0638]
[1741386708342,193.0,141.65,141.6,7.0638]
[1741386708543,232.0419,141.65,141.6,7.0638]
[1741386709151,232.0419,141.65,141.59,0.04969636]
[1741386709452,232.0419,141.65,141.61,7.0635]
[1741386710350,232.0419,141.65,141.61,27.17241195]
[1741386710351,193.0,141.65,141.61,27.17241195]
[1741386711948,193.0,141.65,141.63,7.0622]
[1741386712246,7.0606,141.67,141.63,0.05419872]
[1741386712247,31.96,141.67,141.63,0.05419872]
[1741386713151,7.0615,141.66,141.63,0.05419872]
[1741386713344,31.96,141.67,141.63,0.05419872]
[1741386713542,193.0,141.66,141.63,0.05419872]
[1741386713748,7.0621,141.64,141.63,0.05419872]
[1741386714647,193.0,141.66,141.63,0.05419872]
[1741386715542,200.0612,141.66,141.63,0.05419872]
[1741386716359,31.96,141.67,141.63,0.05419872]
[1741386716852,31.96,141.67,141.64,7.062]
[1741386717555,7.0619,141.65,141.63,0.05419872]
[1741386718148,7.0621,141.64,141.63,0.05419872]
[1741386718343,31.96,141.67,141.63,0.05419872]
[1741386718744,7.0621,141.64,141.63,0.05419872]
[1741386719759,31.96,141.67,141.63,0.05419872]
[1741386719955,7.0617,141.65,141.63,0.05419872]
[1741386720558,31.96,141.67,141.63,0.05419872]
[1741386721159,7.0621,141.64,141.63,0.05419872]
[1741386724164,38.9818,141.65,141.63,0.05419872]
[1741386724351,31.92,141.65,141.63,0.05419872]
[1741386724758,7.0621,141.64,141.63,0.05419872]
[1741386725164,193.0,141.71,141.63,0.05419872]
[1741386725363,31.92,141.7,141.63,27.22661067]
[1741386725757,31.92,141.69,141.66,7.0608]
[1741386726060,193.0,141.71,141.66,7.0608]
[1741386726253,31.92,141.7,141.66,7.1142853]
[1741386726457,7.06,141.69,141.66,7.1142853]
[1741386727060,7.06,141.69,141.66,0.0532853]
[1741386727856,7.06,141.69,141.66,7.1140853]
[1741386728266,7.06,141.69,141.66,0.0532853]
[1741386728462,7.06,141.69,141.67,7.0606]
[1741386728667,7.06,141.69,141.66,0.0532853]
[1741386728967,38.9793,141.7,141.67,7.0606]
[1741386729562,31.92,141.7,141.66,0.0532853]
[1741386729957,200.0588,141.71,141.66,0.0532853]
[1741386729958,200.0588,141.71,141.68,7.06]
[1741386730163,224.92,141.71,141.66,0.0532853]
[1741386730462,224.9,141.71,141.67,7.0603]
[1741386731563,224.9,141.71,141.66,0.0532853]
[1741386732064,7.0606,141.67,141.66,0.0532853]
[1741386732265,38.9606,141.67,141.66,0.0532853]
[1741386733470,38.9606,141.67,141.66,8.53e-05]
[1741386733471,235.4806,141.67,141.66,8.53e-05]
[1741386733666,228.42,141.67,141.54,69.92449718]
[1741386733858,220.17241195,141.66,141.54,9.78666502]
[1741386734064,27.17241195,141.63,141.51,49.83128523]
[1741386734260,31.9,141.62,141.51,42.76288523]
[1741386734467,193.0,141.61,141.51,42.76288523]
[1741386734869,193.0,141.6,141.51,39.16958523]
[1741386735066,0.04512904,141.57,141.55,5.422e-05]
[1741386735260,224.9,141.56,141.55,5.422e-05]
[1741386735462,31.9,141.56,141.51,28.52653945]
[1741386735768,31.9,141.56,141.5,122.35314543]
[1741386735769,27.17241195,141.54,141.5,81.75448488]
[1741386735961,7.0686,141.51,141.5,81.75448488]
[1741386736164,38.9686,141.51,141.5,81.75448488]
[1741386736574,42.5086,141.51,141.5,28.70048488]
[1741386736773,7.0691,141.5,141.49,116.05366949]
[1741386736982,62.61241195,141.51,141.39,29.42537021]
[1741386737185,27.17241195,141.48,141.39,29.42537021]
[1741386737480,31.9,141.47,141.39,29.42537021]
[1741386737678,27.17241195,141.45,141.39,29.42537021]
[1741386737879,7.0741,141.4,141.39,29.42537021]
[1741386738081,31.9,141.4,141.39,29.42537021]
[1741386739883,31.9,141.4,141.38,0.05148114]
[1741386739884,193.0,141.39,141.38,0.05148114]
[1741386740082,31.9,141.4,141.38,0.05148114]
[1741386740288,31.94966898,141.4,141.38,0.05148114]
[1741386740986,35.48966898,141.4,141.38,0.05148114]
[1741386741189,31.94966898,141.4,141.38,0.05148114]
[1741386741382,0.04966898,141.4,141.38,0.05148114]
[1741386741785,31.92,141.47,141.38,31.97148114]
[1741386741984,149.76607339,141.5,141.41,27.17241195]
[1741386742187,117.84607339,141.5,141.44,27.17241195]
[1741386742387,117.84607339,141.5,141.48,7.0701]
[1741386742889,113.39031428,141.49,141.44,27.17241195]
[1741386743078,113.39031428,141.49,141.48,7.0701]
[1741386743480,2.74438454,141.49,141.48,51.27329317]
[1741386743690,188.98385713,141.51,141.48,44.20319317]
[1741386744289,188.98385713,141.51,141.5,7.0691]
[1741386745287,188.98385713,141.51,141.49,7.0695]
[1741386745583,188.98385713,141.51,141.47,0.04605249]
[1741386745790,188.98385713,141.51,141.47,7.11625249]
[1741386746387,188.98385713,141.51,141.47,0.04605249]
[1741386746690,235.17793711,141.52,141.47,0.04605249]
[1741386746691,0.04853764,141.52,141.47,0.04605249]
[1741386751092,0.04853764,141.52,141.41,7.4097]
[1741386751093,193.0,141.51,141.42,44.20319317]
[1741386751297,44.20319317,141.56,141.41,3.7163]
[1741386751298,224.88,141.5,141.41,3.7163]
[1741386752298,0.04692719,141.47,141.44,0.05229109]
[1741386752496,31.88,141.46,141.44,0.05229109]
[1741386753198,0.04692719,141.47,141.44,0.05229109]
[1741386754391,0.04692719,141.47,141.45,7.0715]
[1741386754591,0.04692719,141.47,141.44,0.05229109]
[1741386754592,0.04692719,141.47,141.44,44.25548426]
[1741386754799,193.0,141.55,141.45,3.708]
[1741386754990,31.88,141.58,141.51,44.20319317]
[1741386755690,31.88,141.58,141.55,7.0665]
[1741386755896,0.05222369,141.56,141.54,44.20319317]
[1741386756897,0.05222369,141.56,141.54,51.26989317]
[1741386757492,193.0,141.61,141.54,44.20319317]
[1741386757798,224.88,141.61,141.54,44.20319317]
[1741386758097,193.0,141.61,141.57,7.0655]
[1741386758394,193.0,141.61,141.54,44.20319317]
[1741386758594,193.0,141.61,141.56,0.0543006]
[1741386759297,224.86,141.61,141.56,7.1200006]
[1741386759591,193.0,141.6,141.56,0.0543006]
[1741386759801,7.068,141.53,141.48,51.27309317]
[1741386759992,31.86,141.53,141.47,3.4177]
[1741386760191,31.86,141.53,141.44,219.212]
[1741386760698,7.0702,141.48,141.44,219.212]
[1741386760887,7.0702,141.48,141.47,0.05100576]
[1741386761092,31.86,141.49,141.47,0.05100576]
[1741386762194,0.04906519,141.5,141.49,7.0696]
[1741386762799,0.04906519,141.5,141.48,44.20319317]
[1741386762800,0.04906519,141.5,141.48,7.0699]
[1741386763001,0.04906519,141.5,141.47,0.05100576]
[1741386763497,0.04906519,141.5,141.48,7.0701]
[1741386763700,0.04906519,141.5,141.47,0.05100576]
[1741386764300,7.0701,141.48,141.47,0.05100576]
[1741386764501,38.9301,141.48,141.47,0.05100576]
[1741386766306,31.86,141.48,141.47,0.05100576]
[1741386767401,31.86,141.48,141.47,7.12160576]
[1741386769307,0.04906519,141.5,141.49,7.0696]
[1741386772305,0.04906519,141.5,141.48,7.07]
[1741386772505,0.04906519,141.5,141.48,44.20319317]
[1741386772712,31.84,141.56,141.48,44.20319317]
[1741386773014,103.76914313,141.58,141.54,44.20319317]
[1741386773810,0.02508352,141.57,141.55,0.04819797]
[1741386774099,0.02508352,141.57,141.56,7.0658]
[1741386774905,103.76914313,141.58,141.57,7.0656]
[1741386775207,38.8836,141.61,141.57,7.0656]
[1741386775816,31.82,141.62,141.58,7.065]
[1741386776007,31.82,141.62,141.57,44.20319317]
[1741386776211,31.82,141.62,141.59,0.04691786]
[1741386777411,38.8831,141.62,141.59,0.04691786]
[1741386778008,7.0631,141.62,141.59,0.04691786]
[1741386778413,7.0641,141.6,141.59,0.04691786]
[1741386780206,38.8641,141.6,141.59,0.04691786]
[1741386780412,193.0,141.59,141.52,3.3068]
[1741386780611,193.0,141.59,141.5,6.8949]
[1741386781213,237.20319317,141.58,141.47,3.3068]
[1741386781512,0.04691786,141.54,141.51,0.05290838]
[1741386781719,31.8,141.53,141.44,10.5264]
[1741386781907,224.8,141.53,141.44,10.5264]
[1741386782314,224.8,141.53,141.42,3.3068]
[1741386782315,193.0,141.52,141.42,3.3068]
[1741386782516,7.0699,141.49,141.42,3.3068]
[1741386782715,31.8,141.48,141.42,3.3068]
[1741386782921,0.05340459,141.47,141.44,0.04487747]
[1741386783412,0.05340459,141.47,141.37,44.20319317]
[1741386783613,193.0,141.46,141.34,44.20319317]
[1741386783817,193.0,141.45,141.34,44.20319317]
[1741386784017,31.8,141.44,141.34,44.20319317]
[1741386784214,31.8,141.44,141.36,44.20319317]
[1741386784716,0.04584954,141.41,141.39,0.04616025]
[1741386784919,31.8,141.4,141.39,0.04616025]
[1741386788523,31.8,141.4,141.33,44.20319317]
[1741386788724,31.8,141.4,141.32,7.078]
[1741386789022,7.0755,141.38,141.3,256.26319317]
[1741386789327,193.0,141.39,141.3,44.20319317]
[1741386789725,31.8,141.4,141.28,6.3355]
[1741386789726,0.04863913,141.36,141.33,0.04822327]
[1741386789925,31.8,141.35,141.27,47.28989317]
[1741386790131,31.8,141.35,141.31,7.0781]
[1741386790521,7.0757,141.37,141.3,44.20319317]
[1741386790730,31.8,141.35,141.31,7.0784]
[1741386791030,0.05243196,141.34,141.32,0.05336025]
[1741386791927,0.05243196,141.34,141.32,7.13136025]
[1741386792124,0.05243196,141.34,141.32,0.05336025]
[1741386792323,193.0,141.43,141.33,120.22638634]
[1741386792526,28.51885451,141.44,141.37,44.20319317]
[1741386793021,28.51885451,141.44,141.43,7.0726]
[1741386793220,28.51885451,141.44,141.43,51.27579317]
[1741386793520,235.12939947,141.48,141.43,44.20319317]
[1741386793826,235.12939947,141.48,141.46,44.20319317]
[1741386794030,235.12939947,141.48,141.46,51.27429317]
[1741386794231,172.76055713,141.47,141.46,51.27429317]
[1741386795030,0.04786227,141.48,141.47,7.0706]
[1741386795727,0.04786227,141.48,141.46,44.20319317]
[1741386795933,0.04786227,141.48,141.46,51.27419317]
[1741386796832,0.04786227,141.48,141.45,0.04554059]
[1741386797223,0.04786227,141.48,141.45,7.11704059]
[1741386798128,0.04786227,141.48,141.45,0.04554059]
[1741386800335,0.04786227,141.48,141.45,7.11704059]
[1741386800732,0.04786227,141.48,141.45,0.04554059]
[1741386802037,31.78,141.47,141.45,0.04554059]
[1741386803134,7.0711,141.46,141.45,0.04554059]
[1741386803539,31.78,141.47,141.37,44.20319317]
[1741386803540,224.78,141.47,141.37,44.20319317]
[1741386803742,7.0737,141.41,141.37,51.27839317]
[1741386804037,31.78,141.42,141.34,50.73709317]
[1741386804237,31.78,141.41,141.34,50.73709317]
[1741386804635,0.05252498,141.39,141.36,0.0520291]
[1741386804834,7.0751,141.38,141.36,0.0520291]
[1741386805237,0.05252498,141.39,141.36,0.0520291]
[1741386805438,7.0756,141.37,141.36,0.0520291]
[1741386805634,38.8556,141.37,141.36,0.0520291]
[1741386806032,7.0762,141.36,141.3,6.5176]
[1741386806634,7.0773,141.34,141.29,212.16]
[1741386807040,31.78,141.37,141.31,44.20319317]
[1741386807230,0.05329935,141.33,141.32,7.0781]
[1741386808145,31.78,141.37,141.34,7.0767]
[1741386808344,31.78,141.37,141.31,44.20319317]
[1741386809245,0.05044947,141.35,141.33,0.05219627]
[1741386810242,7.0771,141.34,141.33,0.05219627]
[1741386810843,0.05044947,141.35,141.33,0.05219627]
[1741386811142,7.12704947,141.35,141.33,0.05219627]
[1741386811443,7.0771,141.34,141.33,0.05219627]
[1741386813038,193.05044947,141.35,141.23,47.41739317]
[1741386813246,193.0,141.34,141.23,47.41739317]
[1741386813544,31.78,141.33,141.23,3.2142]
[1741386813750,193.0,141.32,141.23,7.0824]
[1741386814042,0.05410919,141.29,141.26,0.05205066]
[1741386814249,7.0806,141.27,141.26,0.05205066]
[1741386814437,31.78,141.28,141.22,7.0829]
[1741386814636,7.0829,141.23,141.16,6.5106]
[1741386814849,7.0829,141.23,141.16,9.5213]
[1741386815048,31.78,141.24,141.16,53.72449317]
[1741386815247,7.0842,141.2,141.16,9.5213]
[1741386815549,31.78,141.2,141.17,7.0856]
[1741386815754,0.05202707,141.19,141.17,0.04764874]
[1741386816442,0.05202707,141.19,141.12,82.99480925]
[1741386817045,0.05202707,141.19,141.12,38.79161608]
[1741386817652,0.05202707,141.19,141.14,0.05387824]
[1741386817951,31.78,141.2,141.14,0.05387824]
[1741386818154,0.04773093,141.18,141.14,0.05387824]
[1741386820146,0.04773093,141.18,141.14,7.14057824]
[1741386820445,0.04773093,141.18,141.14,0.05387824]
[1741386821652,0.04773093,141.18,141.14,7.14057824]
[1741386821847,0.04773093,141.18,141.14,0.05387824]
[1741386822643,0.04773093,141.18,141.15,44.20319317]
[1741386823852,0.04773093,141.18,141.17,7.0856]
[1741386827354,6.1405,141.28,141.17,3.54]
[1741386827655,31.78,141.26,141.19,44.20319317]
[1741386827858,31.78,141.29,141.28,7.08]
[1741386828054,31.78,141.3,141.25,44.20319317]
[1741386828255,31.78,141.33,141.25,44.20319317]
[1741386828459,31.78,141.33,141.3,7.0789]
[1741386828664,31.78,141.33,141.26,6.22645135]
[1741386828860,31.83274853,141.33,141.26,6.1804]
[1741386829160,31.83274853,141.33,141.28,0.05220838]
[1741386830558,7.0796,141.29,141.28,0.05220838]
[1741386830755,38.8596,141.29,141.28,0.05220838]
[1741386831359,31.78,141.29,141.21,3.0126]
[1741386831555,7.0808,141.27,141.21,3.0126]
[1741386832354,7.0811,141.26,141.21,3.0126]
[1741386832561,31.83127056,141.25,141.23,0.04996887]
[1741386832858,7.0824,141.24,141.19,13.4466]
[1741386833063,7.0824,141.24,141.23,0.05254316]
[1741386833253,31.82873732,141.25,141.16,44.20319317]
[1741386833556,7.0826,141.23,141.22,0.0533214]
[1741386834966,3.54,141.23,141.13,7.0873]
[1741386835155,193.0,141.24,141.13,7.0873]
[1741386835764,7.0857,141.17,141.13,7.0873]
[1741386836162,0.04501338,141.16,141.14,0.04982507]
[1741386836967,7.0866,141.15,141.14,0.04982507]
[1741386838267,7.0879,141.13,141.08,7.0897]
[1741386838565,31.78,141.12,141.08,7.0897]